bitfinex-derivatives/quotes_ETHF0:USTF0_20250322
["timestamp","ask_amount","ask_price","bid_price","bid_amount"]
[1742640339144,1.352,1999.2,1999.1,4.21610691]
[1742640340251,2.35278,1999.2,1999.1,4.21610691]
[1742640340643,1.352,1999.2,1999.1,4.21610691]
[1742640341652,2.35278,1999.2,1999.1,4.21610691]
[1742640341856,1.352,1999.2,1999.1,4.21610691]
[1742640342350,2.35278,1999.2,1999.1,4.21610691]
[1742640342955,1.352,1999.2,1999.1,4.21610691]
[1742640343655,1.352,1999.2,1999.1,5.54300691]
[1742640344555,2.35278,1999.2,1999.1,5.54300691]
[1742640345246,2.35278,1999.2,1999.1,4.54221691]
[1742640345653,2.35278,1999.2,1999.1,5.54304691]
[1742640345948,2.35278,1999.2,1999.1,4.21614691]
[1742640347156,1.352,1999.2,1999.1,4.21614691]
[1742640347351,1.352,1999.2,1999.1,5.56594691]
[1742640349157,1.352,1999.2,1999.1,2.35814691]
[1742640349763,2.35278,1999.2,1999.1,2.35814691]
[1742640351364,2.35278,1999.2,1999.1,0.00751691]
[1742640353359,1.00093,1998.9,1998.8,2.39705]
[1742640354768,1.65073,1998.9,1998.8,2.39705]
[1742640356468,0.6498,1998.9,1998.8,5.60485]
[1742640357468,1.65073,1998.9,1998.8,5.60485]
[1742640359970,1.65073,1998.9,1998.8,5.60488]
[1742640360266,2.28613,1998.9,1998.8,4.20878]
[1742640360469,1.00098,1998.8,1998.7,0.00751691]
[1742640360771,2.31618,1998.8,1998.7,0.00751691]
[1742640361269,2.31618,1998.8,1998.7,1.31871691]
[1742640362473,2.31618,1998.8,1998.7,2.31974691]
[1742640364474,2.31618,1998.8,1998.7,0.00751691]
[1742640365167,10.78418,1998.8,1998.7,0.00751691]
[1742640365361,2.50282,1998.5,1998.1,0.6477]
[1742640365566,1.00126,1998.3,1998.2,1.00128]
[1742640365875,1.00128,1998.2,1998.1,1.64899]
[1742640366069,1.00127,1998.3,1998.2,1.00127]
[1742640366467,2.36637,1998.3,1998.2,2.36477]
[1742640366767,2.36637,1998.3,1998.2,1.3635]
[1742640366974,1.00128,1998.2,1998.1,1.00882691]
[1742640367167,1.3651,1998.2,1998.1,1.00882691]
[1742640368275,1.3651,1998.2,1998.1,2.37232691]
[1742640368474,2.36638,1998.2,1998.1,2.37232691]
[1742640369673,2.36638,1998.2,1998.1,0.00751691]
[1742640371369,2.36638,1998.2,1998.1,1.36161691]
[1742640374080,2.36638,1998.2,1998.1,2.36294691]
[1742640374282,2.36638,1998.2,1998.1,1.36161691]
[1742640377982,2.36638,1998.2,1998.1,0.00751691]
[1742640379178,5.57418,1998.2,1998.1,0.00751691]
[1742640381589,5.57418,1998.2,1998.1,1.31971691]
[1742640384582,11.54218,1998.2,1998.1,1.31971691]
[1742640385185,11.54218,1998.2,1998.1,0.00751691]
[1742640394093,12.34990138,1998.2,1998.1,0.00751691]
[1742640402206,14.84990138,1998.2,1998.1,0.00751691]
[1742640402398,14.93042621,1998.2,1998.1,0.00751691]
[1742640405204,14.93043188,1998.2,1998.1,0.00751691]
[1742640408300,14.84990138,1998.2,1998.1,0.00751691]
[1742640408501,14.93043102,1998.2,1998.1,0.00751691]
[1742640410010,14.93043164,1998.2,1998.1,0.00751691]
[1742640410211,14.93043378,1998.2,1998.1,0.00751691]
[1742640412509,15.61206446,1998.2,1998.1,6.91e-06]
[1742640412709,1.00148,1997.8,1997.7,1.3987]
[1742640412911,13.37828,1997.8,1997.7,1.3987]
[1742640413116,14.18600138,1997.8,1997.7,1.3987]
[1742640413614,15.53530138,1997.8,1997.7,1.3987]
[1742640414112,14.86710138,1997.8,1997.7,1.3987]
[1742640414807,14.18600138,1997.8,1997.7,1.3987]
[1742640415111,13.37828,1997.8,1997.7,1.3987]
[1742640416311,10.17728,1997.8,1997.7,1.3987]
[1742640416609,13.37828,1997.8,1997.7,1.3987]
[1742640419310,12.3768,1997.8,1997.7,1.3987]
[1742640419511,13.37828,1997.8,1997.7,1.3987]
[1742640420411,13.37828,1997.8,1997.7,2.40023]
[1742640420412,5.968,1997.8,1997.7,2.40023]
[1742640422618,1.00143,1997.9,1997.8,1.00148]
[1742640422817,1.00143,1997.9,1997.8,2.31178]
[1742640428018,7.41022,1998.0,1997.9,1.00143]
[1742640428233,8.21843855,1998.0,1997.9,2.6987]
[1742640431019,9.62183855,1998.0,1997.9,2.6987]
[1742640431627,6.41403855,1998.0,1997.9,2.6987]
[1742640431825,9.62183855,1998.0,1997.9,2.6987]
[1742640435526,9.62183855,1998.0,1997.9,2.0171]
[1742640435833,9.62183855,1998.0,1997.6,1.68439691]
[1742640435834,1.00153,1997.7,1997.6,1.68439691]
[1742640436827,1.3924,1997.7,1997.6,1.68439691]
[1742640437015,2.39393,1997.7,1997.6,1.68439691]
[1742640437220,2.39393,1997.7,1997.6,3.02399691]
[1742640437520,2.39393,1997.7,1997.6,2.02241691]
[1742640437716,1.00144,1997.9,1997.8,1.00145]
[1742640437916,1.81020934,1997.9,1997.8,1.00145]
[1742640438116,3.20260934,1997.9,1997.8,1.00145]
[1742640438321,3.20260934,1997.9,1997.8,1.64955]
[1742640438527,3.20260934,1997.9,1997.8,0.6481]
[1742640438928,3.20260934,1997.9,1997.8,1.9877]
[1742640439930,3.20256681,1997.9,1997.8,2.98918]
[1742640441030,3.20256681,1997.9,1997.8,1.9877]
[1742640441735,1.00153,1997.7,1997.6,0.00751691]
[1742640441931,7.41033,1997.7,1997.6,0.00751691]
[1742640442132,8.21905681,1997.7,1997.6,0.00751691]
[1742640442331,9.56905681,1997.7,1997.6,0.00751691]
[1742640442531,9.96339148,1997.7,1997.6,0.00751691]
[1742640442828,10.04393654,1997.7,1997.6,0.00751691]
[1742640443022,9.64960187,1997.7,1997.6,0.00751691]
[1742640445421,15.94115443,1997.7,1997.6,0.00751691]
[1742640445629,18.52170339,1997.7,1997.6,0.00751691]
[1742640445831,12.41660577,1997.7,1997.6,0.00751691]
[1742640446032,15.61760577,1997.7,1997.6,0.00751691]
[1742640446528,15.53705681,1997.7,1997.6,0.00751691]
[1742640454437,12.33474243,1997.7,1997.6,0.00751691]
[1742640454745,14.72833,1997.7,1997.6,0.00751691]
[1742640454941,5.55933,1997.7,1997.6,0.00751691]
[1742640455341,5.55933,1997.7,1997.6,1.40361691]
[1742640456341,4.5578,1997.7,1997.6,2.40519691]
[1742640456536,6.9695,1997.8,1997.6,2.40517691]
[1742640456741,6.9695,1997.8,1997.7,2.0475]
[1742640456947,6.9695,1997.8,1997.7,2.7008]
[1742640460045,6.96948,1997.8,1997.7,2.7008]
[1742640460849,1.00148,1997.8,1997.7,2.7008]
[1742640463349,4.20928,1997.8,1997.7,2.0494]
[1742640463752,5.51978,1997.8,1997.7,2.0494]
[1742640465251,5.51978,1997.8,1997.7,1.3961]
[1742640469144,2.31198,1997.8,1997.7,1.3961]
[1742640469353,5.51978,1997.8,1997.7,1.3961]
[1742640471648,2.31198,1997.8,1997.7,1.3961]
[1742640475354,1.00148,1997.8,1997.7,2.39763]
[1742640475556,1.00148,1997.8,1997.7,1.3961]
[1742640478157,2.33948,1997.8,1997.7,1.3961]
[1742640479456,2.33948,1997.8,1997.7,2.39763]
[1742640480159,1.338,1997.8,1997.7,2.39763]
[1742640480460,2.33948,1997.8,1997.7,1.3961]
[1742640480863,2.33948,1997.8,1997.7,2.39763]
[1742640481358,2.33948,1997.8,1997.7,1.3961]
[1742640481861,1.00148,1997.8,1997.7,2.39763]
[1742640482160,2.33206,1997.9,1997.7,2.39763]
[1742640482359,2.33206,1997.9,1997.8,2.7334]
[1742640484461,3.14132906,1997.9,1997.8,2.7334]
[1742640485549,3.14132906,1997.9,1997.8,2.0817]
[1742640488361,3.14132906,1997.9,1997.8,2.764]
[1742640489453,0.00751691,1998.4,1998.1,1.00131]
[1742640489662,2.27523,1998.3,1998.2,1.2962]
[1742640490557,5.48303,1998.3,1998.2,1.2962]
[1742640490758,6.29218136,1998.3,1998.2,1.2962]
[1742640493755,6.29218136,1998.3,1998.0,3.2]
[1742640493756,1.00133,1998.1,1998.0,3.2]
[1742640493958,1.00133,1998.1,1998.0,0.6517]
[1742640494358,1.4002,1998.2,1998.0,0.6517]
[1742640494359,2.40152,1998.2,1998.0,0.6517]
[1742640494764,1.00132,1998.2,1998.0,0.6517]
[1742640494966,1.00132,1998.2,1998.1,1.3042]
[1742640495864,1.00134,1998.1,1997.9,4.20139]
[1742640496069,2.0275,1998.0,1997.9,4.20139]
[1742640496269,2.0275,1998.0,1997.9,3.2]
[1742640496569,3.02891,1998.0,1997.8,4.20145]
[1742640496765,1.3251,1997.9,1997.8,4.20145]
[1742640497071,1.00148,1997.8,1997.7,1.3161]
[1742640497270,1.00148,1997.8,1997.7,5.51761]
[1742640498675,2.32656,1997.9,1997.8,1.00148]
[1742640501867,1.00148,1997.8,1997.7,2.31759]
[1742640502065,2.28368,1997.8,1997.7,3.8517]
[1742640502266,2.91918,1997.8,1997.7,4.85323]
[1742640503369,1.00153,1997.7,1997.6,1.00904691]
[1742640503570,2.93953,1997.7,1997.6,1.00904691]
[1742640505264,1.271,1997.7,1997.6,1.00904691]
[1742640506177,1.00147,1997.9,1997.8,1.00148]
[1742640507571,2.27907,1997.9,1997.8,1.00148]
[1742640507975,2.27907,1997.9,1997.8,1.66618]
[1742640508676,2.27907,1997.9,1997.8,2.35368]
[1742640508981,1.2776,1997.9,1997.8,2.35368]
[1742640511567,3.2078,1998.2,1998.0,1.00135]
[1742640511780,1.00134,1998.1,1998.0,1.00135]
[1742640512081,4.5613,1998.2,1997.8,3.85587]
[1742640512280,5.36944196,1998.2,1998.0,1.00135]
[1742640512481,1.00133,1998.1,1998.0,1.00135]
[1742640512680,5.56262,1998.2,1998.0,1.00135]
[1742640512881,5.56258,1998.2,1998.1,1.3236]
[1742640513081,6.37071482,1998.2,1998.1,1.3236]
[1742640513979,7.76061482,1998.2,1998.1,1.3236]
[1742640514679,6.75933482,1998.2,1997.9,3.2]
[1742640514881,2.39126,1998.1,1998.0,1.3236]
[1742640515081,2.39126,1998.1,1998.0,2.32498]
[1742640515881,1.3899,1998.1,1998.0,2.32498]
[1742640516580,2.39123,1998.1,1998.0,2.32498]
[1742640517188,1.3899,1998.1,1998.0,2.32498]
[1742640519588,2.39123,1998.1,1998.0,1.3236]
[1742640520090,2.39123,1998.1,1998.0,2.32498]
[1742640520293,2.39123,1998.1,1998.0,1.3236]
[1742640521191,2.39123,1998.1,1998.0,2.32498]
[1742640523390,1.3899,1998.1,1997.8,1.3522]
[1742640523597,2.36008,1998.0,1997.9,1.3828]
[1742640523799,3.02168,1998.0,1997.9,1.3828]
[1742640525487,3.02168,1998.0,1997.9,2.38423]
[1742640525691,3.02168,1998.0,1997.9,1.3828]
[1742640528907,1.00143,1997.9,1997.8,1.00144]
[1742640529099,3.04883,1997.9,1997.8,1.00144]
[1742640529297,3.04883,1997.9,1997.8,2.27634]
[1742640529804,3.04883,1997.9,1997.8,1.2749]
[1742640529996,1.00148,1997.8,1997.7,1.00152]
[1742640530200,2.34628,1997.8,1997.7,2.27642]
[1742640536505,1.00153,1997.7,1997.6,4.20805691]
[1742640536709,2.98553,1997.7,1997.6,4.20805691]
[1742640538209,2.98553,1997.7,1997.6,4.89655691]
[1742640540212,1.3305,1997.7,1997.6,4.89655691]
[1742640540407,2.36476,1997.9,1997.8,1.00148]
[1742640540814,1.70406,1997.9,1997.8,1.00148]
[1742640541812,3.06366,1997.9,1997.8,1.00148]
[1742640543213,1.00148,1997.8,1997.7,2.37869]
[1742640543511,3.01198,1997.8,1997.7,2.37869]
[1742640544214,3.01198,1997.8,1997.7,1.3772]
[1742640546709,1.3574,1997.8,1997.7,2.37873]
[1742640548115,2.35888,1997.8,1997.7,2.37873]
[1742640548516,1.3574,1997.8,1997.7,2.37873]
[1742640549430,2.35888,1997.8,1997.7,2.37873]
[1742640550018,1.3574,1997.8,1997.7,2.37873]
[1742640550214,1.63642,1998.0,1997.9,1.00143]
[1742640550419,1.00142,1998.0,1997.9,1.00143]
[1742640550817,1.00142,1998.0,1997.9,2.30373]
[1742640551720,2.38382,1998.0,1997.9,2.30373]
[1742640554507,1.00143,1997.9,1997.8,5.48724]
[1742640554707,3.10053,1997.9,1997.8,5.48724]
[1742640558725,3.10053,1997.9,1997.8,4.4858]
[1742640559026,1.00153,1997.8,1997.7,1.0015]
[1742640559228,2.99593,1997.8,1997.7,5.54783]
[1742640559528,2.99593,1997.8,1997.7,4.5463]
[1742640559728,1.00153,1997.7,1997.6,1.00905691]
[1742640559917,2.33073,1997.7,1997.6,2.35635691]
[1742640560227,2.33073,1997.7,1997.6,2.35639691]
[1742640561413,2.33073,1997.7,1997.6,1.35481691]
[1742640561618,2.33073,1997.7,1997.6,2.35639691]
[1742640566220,2.33073,1997.7,1997.6,0.00751691]
[1742640570930,2.33073,1997.7,1997.6,1.40091691]
[1742640573034,2.33073,1997.7,1997.6,2.40249691]
[1742640573434,2.33073,1997.7,1997.6,1.40091691]
[1742640575035,2.33073,1997.7,1997.6,2.40249691]
[1742640575238,2.33073,1997.7,1997.6,1.40091691]
[1742640575629,2.33073,1997.7,1997.6,2.40249691]
[1742640575630,1.3292,1997.7,1997.6,2.40249691]
[1742640576635,2.33073,1997.7,1997.6,2.40249691]
[1742640577439,2.33073,1997.7,1997.6,1.40091691]
[1742640583250,2.33073,1997.7,1997.6,1.40091691]
[1742640593047,1.3292,1997.7,1997.6,2.40249691]
[1742640593247,3.2078,1997.9,1997.8,1.00148]
[1742640594056,3.2078,1997.9,1997.8,2.27068]
[1742640594861,3.2078,1997.9,1997.8,5.46968]
[1742640595755,1.00139,1998.0,1997.9,1.00143]
[1742640595954,1.00139,1998.0,1997.9,2.30553]
[1742640596151,2.30859,1998.0,1997.9,2.30553]
[1742640602959,1.3072,1998.0,1997.9,2.30553]
[1742640603165,3.2078,1998.1,1998.0,1.00138]
[1742640603467,1.325,1998.2,1998.1,1.00133]
[1742640603867,1.325,1998.2,1998.1,2.36553]
[1742640604266,2.3263,1998.2,1998.1,1.3642]
[1742640606968,2.32628,1998.2,1998.1,2.36553]
[1742640607167,2.32628,1998.2,1998.1,1.3642]
[1742640607368,2.32628,1998.2,1998.1,2.36553]
[1742640607861,2.32628,1998.2,1998.1,1.3642]
[1742640608368,2.32628,1998.2,1998.1,2.36553]
[1742640608672,2.32628,1998.2,1998.1,1.3642]
[1742640610073,3.02358,1998.2,1998.1,1.3642]
[1742640616872,1.00148,1997.8,1997.6,3.21531691]
[1742640617178,1.00148,1997.8,1997.7,1.4063]
[1742640617577,1.00153,1997.7,1997.6,0.00751691]
[1742640617781,1.00153,1997.7,1997.6,1.41381691]
[1742640617981,1.00153,1997.7,1997.6,2.41539691]
[1742640618976,3.2078,1997.9,1997.6,1.41381691]
[1742640619180,1.00151,1997.8,1997.7,1.4063]
[1742640619372,1.68121,1997.8,1997.7,1.4063]
[1742640621577,1.00153,1997.7,1997.6,1.31081691]
[1742640621771,1.00153,1997.7,1997.6,2.31239691]
[1742640621972,1.00153,1997.7,1997.6,1.31081691]
[1742640622178,1.00153,1997.7,1997.6,2.31239691]
[1742640622483,1.00153,1997.7,1997.6,1.31081691]
[1742640623977,0.6797,1997.8,1997.7,1.00153]
[1742640624177,1.80955131,1998.1,1998.0,1.00138]
[1742640624379,1.45301131,1998.1,1997.8,2.0032]
[1742640624583,1.0014,1998.0,1997.9,5.5225]
[1742640625579,1.64617,1998.1,1998.0,1.00138]
[1742640625783,1.64617,1998.1,1998.0,2.29578]
[1742640632683,1.64617,1998.1,1998.0,1.2944]
[1742640633388,3.00077,1998.1,1998.0,1.2944]
[1742640638286,1.3546,1998.1,1998.0,2.29578]
[1742640638486,1.3546,1998.1,1998.0,2.94308]
[1742640639190,2.35593,1998.1,1998.0,2.94308]
[1742640641394,5.71828691,1998.4,1998.0,2.94308]
[1742640641395,0.00751691,1998.4,1998.3,1.00123]
[1742640641697,0.00751691,1998.4,1998.3,7.40603]
[1742640642296,0.00751691,1998.4,1998.3,8.06313]
[1742640644794,4.20881,1998.8,1998.7,1.00103]
[1742640646099,4.20881,1998.8,1998.5,3.197]
[1742640646100,1.00103,1998.7,1998.6,2.28983]
[1742640646295,1.3598,1998.7,1998.6,2.28983]
[1742640654498,2.0373,1998.7,1998.6,2.28983]
[1742640655804,2.0373,1998.7,1998.6,2.97463]
[1742640658305,1.3598,1998.7,1998.6,2.97463]
[1742640662401,1.00848691,1998.9,1998.8,1.00098]
[1742640662602,1.28031691,1998.9,1998.8,1.00098]
[1742640663114,1.28031691,1998.9,1998.8,2.37748]
[1742640664304,0.00751691,1998.9,1998.8,2.37748]
[1742640669322,2.09371691,1998.9,1998.8,2.37748]
[1742640669617,2.78941691,1998.9,1998.8,5.57248]
[1742640676920,3.79034691,1998.9,1998.8,5.57248]
[1742640678721,2.78941691,1998.9,1998.8,5.57248]
[1742640679632,1.40191691,1998.9,1998.8,4.19598]
[1742640680012,0.70621691,1998.9,1998.8,4.19598]
[1742640680623,1.00844691,1998.9,1998.8,4.19598]
[1742640681121,0.00751691,1998.9,1998.8,4.19598]
[1742640687134,0.00751691,1998.9,1998.8,4.8457008]
[1742640691827,6.96866,1999.5,1999.4,1.00068]
[1742640692017,1.00066,1999.5,1999.4,1.00068]
[1742640692218,10.17635,1999.7,1999.3,3.195]
[1742640692419,1.00064,1999.5,1999.4,1.00064]
[1742640693236,1.00063,1999.5,1999.4,1.00063]
[1742640693531,0.00751691,1999.6,1999.5,1.00063]
[1742640693532,1.00812691,1999.6,1999.5,1.00063]
[1742640693924,0.00751691,1999.6,1999.5,1.00063]
[1742640696518,0.00751691,1999.6,1999.5,4.19463]
[1742640701137,1.00809691,1999.6,1999.5,4.19463]
[1742640703933,0.00751691,1999.6,1999.3,5.872]
[1742640704139,1.00064,1999.5,1999.4,4.19465]
[1742640706846,1.00064,1999.5,1999.4,3.194]
[1742640707044,1.00064,1999.5,1999.4,4.19468]
[1742640707242,1.00063,1999.5,1999.3,3.193]
[1742640707441,1.00068,1999.4,1999.3,3.193]
[1742640707636,1.00068,1999.4,1999.3,4.19373]
[1742640712546,1.00068,1999.4,1999.3,1.00073]
[1742640712853,1.00073,1999.3,1999.2,7.40155]
[1742640713243,1.00073,1999.3,1999.2,4.20855]
[1742640713446,1.00073,1999.3,1999.2,7.40158]
[1742640717960,2.34313,1999.3,1999.2,7.40158]
[1742640718461,1.00078,1999.2,1999.1,1.295]
[1742640718654,2.34318,1999.2,1999.1,4.488]
[1742640719262,2.34318,1999.2,1999.1,1.295]
[1742640719562,3.00528,1999.2,1999.1,1.295]
[1742640719959,1.00088,1999.0,1998.9,0.6593]
[1742640720157,1.00088,1999.0,1998.9,3.8523]
[1742640720554,1.66298,1999.0,1998.9,3.8523]
[1742640721060,1.66298,1999.0,1998.7,0.00751691]
[1742640721061,1.00098,1998.8,1998.7,0.00751691]
[1742640721267,1.00098,1998.8,1998.7,5.22141691]
[1742640721864,1.00098,1998.8,1998.7,4.56211691]
[1742640722162,1.65008,1998.8,1998.7,1.36911691]
[1742640722664,3.02118,1998.8,1998.7,1.36911691]
[1742640723163,3.2078,1998.9,1998.8,1.00098]
[1742640723367,1.3711,1999.0,1998.9,1.00093]
[1742640723563,1.3711,1999.0,1998.9,2.36253]
[1742640724260,4.4843,1999.3,1999.0,1.00084]
[1742640724464,1.4048,1999.1,1999.0,4.19384]
[1742640725261,2.40564,1999.1,1999.0,4.19384]
[1742640726567,2.40564,1999.1,1999.0,3.193]
[1742640728068,2.40564,1999.1,1999.0,4.19388]
[1742640730671,2.40564,1999.1,1999.0,3.193]
[1742640731259,2.40564,1999.1,1999.0,4.19388]
[1742640731471,2.29206,1999.3,1999.2,1.00078]
[1742640731672,1.2913,1999.3,1999.2,1.00078]
[1742640732171,1.2913,1999.3,1999.1,1.00079]
[1742640732574,2.29203,1999.3,1999.1,1.00079]
[1742640732771,1.2831,1999.2,1999.1,1.00079]
[1742640734773,1.2831,1999.2,1999.1,2.36639]
[1742640736166,2.28388,1999.2,1999.1,3.02873]
[1742640737173,2.28388,1999.2,1999.1,2.0279]
[1742640739970,2.28388,1999.2,1999.1,3.02873]
[1742640740372,2.28388,1999.2,1999.1,2.36643]
[1742640740575,2.28388,1999.2,1999.1,1.3656]
[1742640740970,2.28388,1999.2,1999.1,2.36643]
[1742640741766,2.28388,1999.2,1999.1,1.3656]
[1742640743578,2.28388,1999.2,1999.1,2.36643]
[1742640748778,1.00083,1999.1,1999.0,1.00085]
[1742640748981,2.27583,1999.1,1999.0,1.00085]
[1742640749280,2.27583,1999.1,1999.0,1.2986]
[1742640749979,5.48363,1999.1,1999.0,1.2986]
[1742640750179,5.48363,1999.1,1998.9,4.19388]
[1742640750180,1.00088,1999.0,1998.9,1.00088]
[1742640750383,3.62798,1999.0,1998.9,2.29948]
[1742640750683,1.00093,1998.9,1998.8,4.19395]
[1742640750979,2.27593,1998.9,1998.8,5.49255]
[1742640752683,2.27593,1998.9,1998.8,2.29955]
[1742640753579,1.275,1998.9,1998.8,2.29955]
[1742640753776,2.27593,1998.9,1998.8,2.29955]
[1742640756884,1.00098,1998.8,1998.7,1.00850691]
[1742640757079,2.32258,1998.8,1998.7,2.35820691]
[1742640758285,1.3216,1998.8,1998.7,2.35820691]
[1742640758887,2.32258,1998.8,1998.7,2.35820691]
[1742640759790,1.3216,1998.8,1998.7,2.35820691]
[1742640760380,2.32258,1998.8,1998.7,2.35820691]
[1742640763981,2.32258,1998.8,1998.7,1.00850691]
[1742640764283,2.32258,1998.8,1998.7,1.00854691]
[1742640764490,2.32258,1998.8,1998.7,0.00751691]
[1742640765482,2.32258,1998.8,1998.7,1.32631691]
[1742640765796,2.32258,1998.8,1998.7,2.32734691]
[1742640766289,2.32258,1998.8,1998.7,1.32631691]
[1742640766585,2.32258,1998.8,1998.7,2.32734691]
[1742640766994,2.32258,1998.8,1998.7,0.00751691]
[1742640767791,2.32258,1998.8,1998.7,1.33641691]
[1742640769194,2.32258,1998.8,1998.7,2.33744691]
[1742640769390,2.32258,1998.8,1998.7,1.33641691]
[1742640769691,2.32258,1998.8,1998.7,2.33744691]
[1742640770091,2.32258,1998.8,1998.7,1.33641691]
[1742640770590,2.32258,1998.8,1998.7,2.33744691]
[1742640771691,2.32258,1998.8,1998.7,1.33641691]
[1742640771991,2.32258,1998.8,1998.7,2.33744691]
[1742640772493,2.96668,1998.8,1998.7,2.33744691]
[1742640773193,2.96668,1998.8,1998.7,3.00844691]
[1742640773398,1.3216,1998.8,1998.7,3.00844691]
[1742640773587,1.00096,1998.9,1998.8,1.00098]
[1742640773785,2.38136,1998.9,1998.8,2.34138]
[1742640777189,1.3804,1998.9,1998.8,2.34138]
[1742640778195,2.38133,1998.9,1998.8,2.34138]
[1742640780993,1.3804,1998.9,1998.8,2.34138]
[1742640781193,9.1758,1999.2,1998.8,1.3404]
[1742640781392,2.40698,1999.1,1999.0,1.00085]
[1742640781595,2.40698,1999.1,1999.0,2.39485]
[1742640782698,2.40698,1999.1,1999.0,1.394]
[1742640783303,2.40698,1999.1,1999.0,2.39488]
[1742640783601,3.21485173,1999.1,1999.0,2.39488]
[1742640783897,2.40693,1999.1,1999.0,2.39488]
[1742640784894,3.2078,1999.2,1999.1,1.00083]
[1742640785101,4.5003,1999.2,1999.1,2.30933]
[1742640785500,5.50108,1999.2,1999.1,2.30933]
[1742640786601,1.2925,1999.2,1999.1,2.30933]
[1742640791103,1.3739,1999.5,1999.4,1.00068]
[1742640791406,2.37457,1999.5,1999.4,1.00068]
[1742640792001,1.3739,1999.5,1999.4,1.00068]
[1742640792207,0.6881,1999.5,1999.4,1.00068]
[1742640792509,2.0132,1999.5,1999.4,1.00068]
[1742640793605,1.3251,1999.5,1999.4,1.00068]
[1742640796303,1.3251,1999.5,1999.4,1.65938]
[1742640798610,2.32573,1999.5,1999.4,1.65938]
[1742640799007,1.3251,1999.5,1999.4,1.65938]
[1742640800215,1.00073,1999.3,1999.2,3.2078]
[1742640800407,1.00078,1999.2,1999.1,1.00078]
[1742640800615,1.00083,1999.1,1999.0,2.38454]
[1742640800805,2.31173,1999.1,1999.0,2.38454]
[1742640801207,3.70903,1999.1,1999.0,2.38454]
[1742640801613,1.0009,1999.0,1998.9,1.00088]
[1742640801808,2.3982,1999.0,1998.9,2.38458]
[1742640804721,2.3982,1999.0,1998.9,1.00088]
[1742640807517,1.00093,1998.9,1998.8,2.30364]
[1742640807717,2.27493,1998.9,1998.8,2.30364]
[1742640814326,1.274,1998.9,1998.8,2.30364]
[1742640815823,2.27493,1998.9,1998.8,2.30364]
[1742640819627,1.00098,1998.8,1998.7,1.00850691]
[1742640819825,3.67258,1998.8,1998.7,2.29600691]
[1742640820927,1.00096,1998.9,1998.8,1.00098]
[1742640821127,2.35976,1998.9,1998.8,2.28848]
[1742640825631,2.35976,1998.9,1998.8,1.2875]
[1742640825831,2.35976,1998.9,1998.8,2.28848]
[1742640827426,2.35976,1998.9,1998.8,1.2875]
[1742640828333,2.35976,1998.9,1998.8,2.28848]
[1742640829836,2.35976,1998.9,1998.8,1.2875]
[1742640833445,1.00135,1998.1,1998.0,3.2078]
[1742640833629,1.00146,1997.9,1997.7,2.38882]
[1742640833829,1.00143,1997.9,1997.8,1.3873]
[1742640834539,4.20923,1997.9,1997.8,1.3873]
[1742640834743,1.00148,1997.8,1997.7,0.66981691]
[1742640834939,2.36168,1997.8,1997.7,1.93881691]
[1742640836443,2.36168,1997.8,1997.7,1.27651691]
[1742640845747,2.36168,1997.8,1997.7,0.00751691]
[1742640854452,2.36168,1997.8,1997.7,2.98954691]
[1742640854657,5.55568,1997.8,1997.7,1.98801691]
[1742640854854,2.36168,1997.8,1997.7,2.98954691]
[1742640855755,2.36168,1997.8,1997.7,1.98801691]
[1742640859255,2.36168,1997.8,1997.7,2.98954691]
[1742640863149,2.36168,1997.8,1997.7,1.98801691]
[1742640863349,2.36168,1997.8,1997.7,0.00751691]
[1742640863960,6.36517423,1997.8,1997.7,0.00751691]
[1742640864155,5.55568,1997.8,1997.7,0.00751691]
[1742640864855,6.36515814,1997.8,1997.7,0.00751691]
[1742640866863,1.3602,1997.8,1997.7,1.00904691]
[1742640867567,4.20927,1997.9,1997.8,1.00148]
[1742640867753,5.61507,1997.9,1997.8,2.29538]
[1742640870962,5.61507,1997.9,1997.8,1.2939]
[1742640871162,5.61507,1997.9,1997.8,2.29538]
[1742640871359,1.4058,1997.9,1997.8,2.29538]
[1742640871761,2.40723,1997.9,1997.8,2.29538]
[1742640872466,2.40723,1997.9,1997.8,1.2939]
[1742640874069,2.40723,1997.9,1997.8,2.29538]
[1742640875363,2.40723,1997.9,1997.8,1.2939]
[1742640875565,2.40723,1997.9,1997.8,2.29538]
[1742640877467,1.4058,1997.9,1997.8,2.29538]
[1742640879174,2.40723,1997.9,1997.8,2.29538]
[1742640879363,1.4058,1997.9,1997.8,2.29538]
[1742640879677,3.21531691,1998.0,1997.9,1.00143]
[1742640879866,4.61941691,1998.0,1997.9,3.00403]
[1742640882165,5.62079691,1998.0,1997.9,3.00403]
[1742640883075,4.61941691,1998.0,1997.9,3.00403]
[1742640883573,5.62079691,1998.0,1997.9,3.00403]
[1742640887380,2.41299691,1998.0,1997.9,3.00403]
[1742640888376,1.41161691,1998.0,1997.9,3.00403]
[1742640888578,0.6661,1998.3,1998.2,1.00128]
[1742640888887,1.0013,1998.2,1998.1,1.00129]
[1742640889070,1.00133,1998.1,1998.0,4.85604]
[1742640889270,1.00133,1998.1,1998.0,4.19534]
[1742640889874,2.29873,1998.1,1998.0,5.55814]
[1742640891381,2.29873,1998.1,1998.0,2.36414]
[1742640892180,1.00138,1998.0,1997.9,1.65]
[1742640892481,2.95808,1998.0,1997.9,2.9708]
[1742640892682,1.9567,1998.0,1997.9,2.9708]
[1742640897187,2.95808,1998.0,1997.9,2.9708]
[1742640897384,2.95808,1998.0,1997.9,2.3222]
[1742640898288,2.95808,1998.0,1997.9,1.0014]
[1742640898478,2.95808,1998.0,1997.9,2.3478]
[1742640898680,1.9567,1998.0,1997.9,2.3478]
[1742640900189,2.95808,1998.0,1997.9,1.0014]
[1742640900487,2.95808,1998.0,1997.8,3.194]
[1742640900488,1.00143,1997.9,1997.8,1.3464]